bitfinex/quotes_ETHUSD_20250222
["timestamp","ask_amount","ask_price","bid_price","bid_amount"]
[1740265703779,0.7515,2771.3,2770.6,0.8179]
[1740265704083,3.60862,2771.2,2770.7,4.07369212]
[1740265704999,3.60862,2771.2,2770.7,0.46450212]
[1740265705290,3.60874,2771.1,2770.7,0.46450212]
[1740265705495,0.7515,2771.3,2770.7,0.46450212]
[1740265705496,3.60906,2770.8,2770.7,0.46450212]
[1740265705780,3.60924,2770.7,2770.5,0.469443]
[1740265705983,3.60906,2770.8,2770.5,0.469443]
[1740265706145,3.60919,2770.7,2770.5,0.469443]
[1740265711204,7.21849,2770.7,2770.5,0.469443]
[1740265711975,3.60932,2770.6,2770.4,1.61563]
[1740265712178,3.60926,2770.7,2770.4,1.08493]
[1740265712799,3.60915,2770.8,2770.5,0.7824]
[1740265713299,7.21776,2771.0,2770.5,0.7824]
[1740265713457,3.60902,2770.9,2770.5,0.7824]
[1740265713802,3.60902,2770.9,2770.6,0.54768]
[1740265714496,3.60893,2770.9,2770.6,0.54768]
[1740265718995,3.60888,2771.0,2770.6,0.54768]
[1740265719859,0.8106,2771.2,2770.6,0.54768]
[1740265720100,3.60908,2770.8,2770.6,0.54768]
[1740265720270,3.60908,2770.8,2770.5,0.7824]
[1740265722404,3.60894,2770.9,2770.5,0.7824]
[1740265723314,3.60925,2770.7,2770.4,1.08493]
[1740265724967,3.60926,2770.7,2770.4,1.08493]
[1740265725167,3.60938,2770.6,2770.4,1.08493]
[1740265727617,3.60938,2770.6,2770.5,0.729193]
[1740265729675,3.64783675,2770.6,2770.5,0.729193]
[1740265731726,3.64783675,2770.6,2770.4,0.258]
[1740265731727,3.60945,2770.5,2770.3,6.207]
[1740265732047,0.03845675,2770.6,2770.1,0.257]
[1740265732345,3.60984,2770.2,2770.1,0.257]
[1740265732843,3.60997,2770.1,2770.0,5.39]
[1740265733487,3.64761306,2770.1,2770.0,5.39]
[1740265733693,3.60997,2770.1,2770.0,5.39]
[1740265734093,3.64761306,2770.1,2770.0,5.39]
[1740265734327,3.60997,2770.1,2770.0,5.39]
[1740265734542,3.64761306,2770.1,2770.0,5.39]
[1740265735962,3.64761306,2770.1,2769.9,0.257]
[1740265736255,3.64761306,2770.1,2769.9,1.71008211]
[1740265736412,3.64761306,2770.1,2769.9,0.257]
[1740265737059,3.6101,2770.0,2769.9,0.257]
[1740265737411,3.6474536,2770.0,2769.9,0.257]
[1740265739058,3.6474536,2770.0,2769.7,0.7879]
[1740265739263,3.61034,2769.9,2769.7,0.257]
[1740265739567,4.41566,2769.5,2768.8,6.1411]
[1740265739872,4.45244936,2769.5,2768.9,0.258]
[1740265740160,4.45244936,2769.5,2768.8,6.3991]
[1740265740315,4.45244936,2769.5,2768.8,10.01073]
[1740265740770,0.84168936,2769.5,2768.8,10.01069]
[1740265740916,0.03678936,2769.5,2769.0,3.61138]
[1740265741119,3.61076,2769.5,2769.0,3.61138]
[1740265741357,3.64754936,2769.5,2769.0,3.61138]
[1740265741522,3.64754936,2769.5,2769.2,0.7511]
[1740265743266,0.03678936,2769.5,2769.2,0.7511]
[1740265743947,8.02604,2769.7,2769.2,0.7511]
[1740265744142,0.03689398,2769.6,2769.2,0.7511]
[1740265744564,3.64754398,2769.6,2769.2,0.7511]
[1740265747987,0.03689398,2769.6,2769.4,8.49190481]
[1740265748143,0.03689398,2769.6,2769.5,0.41586596]
[1740265748343,3.61044,2769.8,2769.5,0.41586596]
[1740265748545,0.03652701,2769.7,2769.5,0.41586596]
[1740265748868,0.0364224,2769.6,2769.5,0.41586596]
[1740265749069,3.61044,2769.8,2769.5,0.41586596]
[1740265749473,0.03652701,2769.7,2769.6,1.34768908]
[1740265749874,0.8049,2770.0,2769.6,1.34768908]
[1740265750081,8.84991,2770.2,2769.6,1.34768908]
[1740265750082,0.03652701,2769.7,2769.6,1.34768908]
[1740265750399,3.61004,2770.1,2769.6,1.34768908]
[1740265750705,3.61004,2770.1,2769.7,0.49584391]
[1740265750842,0.7525,2770.2,2769.7,3.61049]
[1740265751047,4.36234,2770.2,2769.7,3.61049]
[1740265751676,3.60984,2770.2,2769.6,5.21630908]
[1740265752275,3.60984,2770.2,2769.6,1.60568908]
[1740265752470,3.60999,2770.1,2769.6,1.60568908]
[1740265752680,3.60984,2770.2,2769.7,0.52163791]
[1740265752838,3.60984,2770.2,2769.6,5.21623908]
[1740265753745,0.03709047,2770.1,2769.8,3.6103]
[1740265753965,3.60973,2770.3,2769.8,3.6103]
[1740265754167,0.03719502,2770.2,2769.6,5.21623908]
[1740265754344,0.03719502,2770.2,2769.7,3.61049]
[1740265754545,0.03719502,2770.2,2769.8,0.88267291]
[1740265754782,3.60973,2770.3,2769.8,0.88267291]
[1740265755085,0.03719502,2770.2,2770.0,0.8059]
[1740265755380,0.7525,2770.4,2770.0,0.8059]
[1740265756378,4.36211,2770.4,2770.0,0.8059]
[1740265756578,5.24,2770.8,2770.0,0.8059]
[1740265756579,0.7919,2770.7,2770.1,3.60986]
[1740265756880,0.7919,2770.7,2770.1,3.60997]
[1740265757056,0.7919,2770.7,2770.2,3.60973]
[1740265757457,0.03407849,2770.6,2770.2,3.60973]
[1740265759386,0.03407849,2770.6,2770.4,4.41537]
[1740265759549,4.40071,2771.0,2770.5,0.441537]
[1740265759751,0.03439205,2770.9,2770.4,4.41537]
[1740265759949,0.03439205,2770.9,2770.4,1.0639]
[1740265760463,3.64339205,2770.9,2770.4,4.67347]
[1740265760884,0.03439205,2770.9,2770.4,4.67347]
[1740265761279,0.03439205,2770.9,2770.4,4.67341]
[1740265761618,3.60906,2770.8,2770.5,1.006341]
[1740265761819,3.60894,2770.9,2770.5,1.006341]
[1740265762413,0.7919,2771.0,2770.5,1.006341]
[1740265762629,4.4007,2771.0,2770.5,4.615761]
[1740265762774,3.609,2770.9,2770.5,1.006341]
[1740265763707,4.40076,2771.0,2770.5,1.006341]
[1740265764902,4.40076,2771.0,2770.5,4.615781]
[1740265766489,4.40076,2771.0,2770.6,0.51673213]
[1740265769437,3.60874,2771.1,2770.6,0.51673213]
[1740265769809,7.2175,2771.1,2770.6,0.51673213]
[1740265770439,0.7911,2771.2,2770.7,3.60911]
[1740265770746,4.37029,2771.6,2770.7,0.7555]
[1740265770895,3.60817,2771.5,2770.8,4.27521321]
[1740265771641,3.60817,2771.5,2771.0,3.60879]
[1740265772913,7.21641,2771.5,2771.0,3.60879]
[1740265773345,3.60817,2771.5,2771.0,3.60879]
[1740265773543,3.60817,2771.5,2771.0,4.39719032]
[1740265774009,3.60701,2772.4,2771.5,3.60815]
[1740265774341,0.7622,2772.2,2771.7,3.60777]
[1740265774545,0.7622,2772.2,2771.7,6.17]
[1740265775149,3.60738,2772.1,2771.7,6.17]
[1740265775354,3.60738,2772.1,2771.7,7.173591]
[1740265775843,0.7622,2772.2,2771.7,7.173591]
[1740265776004,0.7573,2772.4,2771.9,3.60755]
[1740265776352,4.36436,2772.4,2771.9,3.60755]
[1740265776646,0.7573,2772.4,2771.7,10.781411]
[1740265776854,3.60713,2772.3,2771.8,4.7116611]
[1740265777065,3.60713,2772.3,2771.8,1.1039411]
[1740265777601,3.60713,2772.3,2771.8,6.4939411]
[1740265777813,3.60726,2772.2,2771.8,6.4939411]
[1740265780348,3.60743,2772.1,2771.8,6.4939411]
[1740265780521,3.60726,2772.2,2771.9,0.8008809]
[1740265781034,3.6074,2772.1,2771.9,0.8008809]
[1740265781401,3.6075,2772.0,2771.9,0.8008809]
[1740265781824,4.36493,2771.9,2771.8,5.39]
[1740265782026,4.36493,2771.9,2771.8,5.648]
[1740265783632,4.36493,2771.9,2771.8,0.258]
[1740265786141,3.60763,2771.9,2771.8,0.258]
[1740265786504,3.6075,2772.0,2771.8,0.258]
[1740265787436,7.21509,2772.0,2771.8,0.258]
[1740265788009,7.21508,2772.0,2771.8,0.258]
[1740265788320,3.6075,2772.0,2771.8,0.258]
[1740265789811,7.21508,2772.0,2771.8,0.258]
[1740265790139,3.6075,2772.0,2771.8,0.258]
[1740265790639,4.39965,2772.1,2771.8,0.258]
[1740265790976,3.60745,2772.1,2771.8,0.258]
[1740265791240,3.60733,2772.2,2771.8,0.258]
[1740265791435,3.60744,2772.1,2771.8,0.258]
[1740265791640,3.60751,2772.0,2771.8,0.258]
[1740265792224,3.60763,2771.9,2771.8,0.258]
[1740265792806,3.60733,2772.2,2771.8,0.258]
[1740265793446,3.6075,2772.0,2771.8,0.258]
[1740265795448,3.6075,2772.0,2771.8,5.648]
[1740265795651,3.6075,2772.0,2771.9,0.64048]
[1740265804755,3.60763,2771.9,2771.8,5.648]
[1740265805377,3.60763,2771.9,2771.8,5.39]
[1740265805545,3.60763,2771.9,2771.8,5.647]
[1740265806874,3.60763,2771.9,2771.8,5.39]
[1740265807051,4.41033,2771.9,2771.8,5.39]
[1740265807252,3.60776,2771.8,2771.7,0.257]
[1740265807561,3.60815,2771.5,2771.4,0.26644201]
[1740265807767,3.60815,2771.5,2771.4,0.52344201]
[1740265808957,3.60829,2771.4,2771.2,5.39]
[1740265809170,3.60893,2770.9,2770.8,5.39]
[1740265809477,3.60893,2770.9,2770.8,5.647]
[1740265810772,3.60893,2770.9,2770.8,5.39]
[1740265811485,3.60828,2771.4,2770.8,6.2035]
[1740265811486,3.60857,2771.2,2770.8,6.2035]
[1740265811778,3.60857,2771.2,2770.8,7.93381774]
[1740265816589,3.60798,2771.7,2770.8,7.93381774]
[1740265816766,3.60798,2771.7,2771.0,3.60875]
[1740265816767,4.37525,2771.6,2771.0,3.60875]
[1740265816954,4.37525,2771.6,2771.1,0.8314]
[1740265817687,4.37525,2771.6,2771.1,4.44001]
[1740265817997,4.37525,2771.6,2771.2,0.804876]
[1740265818201,3.6082,2771.5,2771.2,0.804876]
[1740265818883,4.37512,2771.6,2771.2,0.804876]
[1740265819387,4.37483,2771.9,2771.4,0.8314]
[1740265819685,7.98258,2771.9,2771.5,0.257]
[1740265821786,3.60777,2771.8,2771.5,0.257]
[1740265822492,4.37483,2771.9,2771.5,0.257]
[1740265822679,4.37483,2771.9,2771.5,1.626498]
[1740265822869,3.60779,2771.8,2771.5,1.626498]
[1740265823305,4.37483,2771.9,2771.5,1.626498]
[1740265823770,3.60779,2771.8,2771.5,1.626498]
[1740265823954,3.60779,2771.8,2771.5,0.257]
[1740265824157,4.37483,2771.9,2771.5,0.257]
[1740265824358,4.37483,2771.9,2771.5,3.86514]
[1740265824593,3.60773,2771.9,2771.5,3.86514]
[1740265825169,3.60773,2771.9,2771.5,0.257]
[1740265825405,3.60773,2771.9,2771.6,0.64784]
[1740265825708,3.60785,2771.8,2771.6,0.64784]
[1740265825911,3.60785,2771.8,2771.5,0.257]
[1740265826796,3.60793,2771.7,2771.5,0.257]
[1740265827808,3.60793,2771.7,2771.5,0.52313619]
[1740265828872,3.60775,2771.9,2771.5,0.52313619]
[1740265829305,3.60782,2771.8,2771.5,0.52313619]
[1740265831398,3.60763,2771.9,2771.5,0.52313619]
[1740265831799,3.6076,2772.0,2771.5,0.52313619]
[1740265832295,3.60769,2771.9,2771.5,0.52313619]
[1740265832508,3.67227015,2771.9,2771.5,0.52313619]
[1740265834807,3.60776,2771.8,2771.5,0.52313619]
[1740265835106,0.06497535,2771.7,2771.5,0.52313619]
[1740265835403,3.60776,2771.8,2771.5,0.52313619]
[1740265835604,3.6077,2771.9,2771.5,0.52313619]
[1740265836111,0.06507829,2771.8,2771.5,0.52313619]
[1740265837013,0.06507829,2771.8,2771.5,5.24020147]
[1740265837173,5.24,2772.8,2771.7,4.43049]
[1740265837174,0.83,2772.3,2771.7,4.43049]
[1740265837512,0.06548999,2772.2,2771.9,3.60763]
[1740265837806,0.06548999,2772.2,2771.7,8.03828]
[1740265837994,4.43713,2772.3,2771.7,9.54431415]
[1740265838201,0.06293872,2772.1,2771.7,9.54431415]
[1740265838388,0.06304163,2772.2,2771.7,5.93642415]
[1740265838585,0.0628358,2772.0,2771.8,3.60776]
[1740265838793,0.06293872,2772.1,2771.8,3.60776]
[1740265838993,4.43713,2772.3,2771.8,4.72480716]
[1740265839195,8.04435,2772.3,2771.8,4.72480716]
[1740265839401,0.06304163,2772.2,2771.8,4.72480716]
[1740265839817,4.43713,2772.3,2771.8,4.72480716]
[1740265839978,0.06293872,2772.1,2771.8,4.72480716]
[1740265840177,0.06304163,2772.2,2771.9,0.55474072]
[1740265840406,0.0628358,2772.0,2771.9,0.55474072]
[1740265840612,4.43713,2772.3,2771.9,0.55474072]
[1740265840813,0.0628358,2772.0,2771.8,3.60776]
[1740265841005,8.04431,2772.3,2771.8,3.60776]
[1740265841196,0.06273287,2771.9,2771.8,3.60776]
[1740265841374,4.43713,2772.3,2771.8,3.60776]
[1740265841579,0.06273287,2771.9,2771.8,3.60776]
[1740265841914,0.06235787,2771.9,2771.8,4.411597]
[1740265842309,4.43713,2772.3,2771.8,0.803837]
[1740265842606,3.60742,2772.1,2771.7,0.8226]
[1740265843015,0.0624608,2772.0,2771.7,0.8226]
[1740265844532,7.21469,2772.2,2771.7,0.8226]
[1740265844731,0.06235787,2771.9,2771.7,0.8226]
[1740265844937,7.21469,2772.2,2771.7,0.8226]
[1740265845099,0.06225493,2771.8,2771.7,0.8226]
[1740265845285,0.06225493,2771.8,2771.7,1.92865993]
[1740265845486,7.21469,2772.2,2771.7,1.92865993]
[1740265845714,0.06256372,2772.1,2771.7,1.92865993]
[1740265847695,0.0624608,2772.0,2771.7,1.92865993]
[1740265847899,3.6079,2771.7,2771.5,5.65613619]
[1740265848136,3.6079,2771.7,2771.6,0.256]
[1740265848298,3.6079,2771.7,2771.5,5.65613619]
[1740265848627,3.6079,2771.7,2771.5,5.91213619]
[1740265851092,0.06226704,2771.6,2771.5,5.91213619]
[1740265851889,3.6079,2771.7,2771.5,5.91213619]
[1740265854220,3.60802,2771.6,2771.5,5.39]
[1740265854591,3.60802,2771.6,2771.5,5.646]
[1740265854889,3.67028704,2771.6,2771.5,0.256]
[1740265856031,3.67028704,2771.6,2771.3,0.26936178]
[1740265856032,3.60828,2771.4,2771.3,0.256]
[1740265856320,3.67034112,2771.4,2771.3,0.256]
[1740265858581,0.06206112,2771.4,2771.3,0.256]
[1740265858889,3.6079,2771.7,2771.3,0.256]
[1740265860725,3.6079,2771.7,2771.4,0.256]
[1740265861320,3.60802,2771.6,2771.4,0.256]
[1740265861833,3.6079,2771.7,2771.4,0.256]
[1740265862201,0.06193115,2771.6,2771.4,0.256]
[1740265863809,0.06182819,2771.5,2771.4,0.256]
[1740265864031,3.60753,2772.0,2771.4,2.391156]
[1740265864235,3.6694084,2771.9,2771.4,2.391156]
[1740265864544,3.6693984,2771.9,2771.4,5.999366]
[1740265864913,3.6693984,2771.9,2771.5,3.60814]
[1740265865341,3.6693984,2771.9,2771.5,4.5688976]
[1740265866642,0.0617684,2771.9,2771.6,3.60796]
[1740265866833,3.60756,2772.0,2771.5,4.5688976]
[1740265867036,0.06023853,2771.9,2771.5,4.5688976]
[1740265869650,0.06023853,2771.9,2771.5,9.9588976]
[1740265869853,4.39824,2772.1,2771.6,2.08653768]
[1740265870048,3.66689182,2772.0,2771.6,2.08653768]
[1740265870553,0.05939182,2772.0,2771.6,2.08653768]
[1740265870757,0.05939182,2772.0,2771.7,3.60788]
[1740265870934,0.05939182,2772.0,2771.7,5.23976733]
[1740265871251,0.05939182,2772.0,2771.7,1.63188733]
[1740265872054,0.05939182,2772.0,2771.7,5.23975733]
[1740265872855,0.05942441,2771.9,2771.7,8.84757733]
[1740265873157,3.60728,2772.2,2771.7,8.84757733]
[1740265873158,3.60728,2772.2,2771.7,8.84752733]
[1740265873318,0.7908,2772.3,2771.8,0.96250273]
[1740265873653,4.39799,2772.3,2771.8,4.57025273]
[1740265874466,8.00519,2772.3,2771.8,3.60775]
[1740265874962,4.39799,2772.3,2771.8,3.60775]
[1740265876167,4.39799,2772.3,2771.8,3.87772615]
[1740265876836,8.00516,2772.3,2771.8,3.87772615]
[1740265878288,4.39798,2772.3,2771.8,3.87772615]
[1740265879345,0.7908,2772.3,2771.9,3.99539262]
[1740265879891,0.7908,2772.3,2771.9,4.70283039]
[1740265883498,0.0580383,2772.2,2771.9,4.70283039]
[1740265883644,0.7908,2772.3,2771.9,4.70283039]
[1740265883844,0.0580383,2772.2,2771.9,4.70283039]
[1740265884075,0.7908,2772.3,2772.0,0.49728065]
[1740265884275,0.0580383,2772.2,2772.0,0.49728065]
[1740265884477,0.7908,2772.3,2772.0,0.49728065]
[1740265884686,0.0580383,2772.2,2772.0,0.49728065]
[1740265884889,0.7908,2772.3,2772.0,0.49728065]
[1740265885099,0.05825037,2772.2,2772.0,0.49728065]
[1740265885404,0.7908,2772.3,2772.1,1.0590111]
[1740265887303,0.05825037,2772.2,2772.1,1.0590111]
[1740265887600,4.39794,2772.3,2772.1,1.0590111]
[1740265887801,0.05825037,2772.2,2772.1,1.0590111]
[1740265888108,4.39794,2772.3,2772.1,1.0590111]
[1740265888284,0.056045,2772.2,2772.1,1.0590111]
[1740265888633,4.39792,2772.3,2772.1,1.0590111]
[1740265889003,0.056045,2772.2,2772.1,1.0590111]
[1740265889655,0.7908,2772.3,2772.1,1.0590111]
[1740265889876,0.056045,2772.2,2772.1,1.0590111]
[1740265890106,0.7908,2772.3,2772.1,1.0590111]
[1740265890306,0.056045,2772.2,2772.1,1.0590111]
[1740265890455,0.7908,2772.3,2772.1,1.0590111]
[1740265890809,0.056045,2772.2,2772.0,0.49728065]
[1740265891116,0.7908,2772.3,2772.0,0.49728065]
[1740265891291,0.056045,2772.2,2772.0,0.49728065]
[1740265891492,0.7908,2772.3,2772.0,0.49728065]
[1740265891677,0.056045,2772.2,2772.0,0.49728065]
[1740265891876,0.7908,2772.3,2772.0,0.49728065]
[1740265892207,0.056045,2772.2,2772.0,0.49728065]
[1740265892504,0.7908,2772.3,2772.0,0.49728065]
[1740265892662,0.056045,2772.2,2772.0,0.49728065]
[1740265892863,0.7908,2772.3,2772.0,0.49728065]
[1740265893103,0.056045,2772.2,2772.0,0.49728065]
[1740265893409,0.7908,2772.3,2772.0,0.49728065]
[1740265893880,0.056045,2772.2,2772.0,0.49728065]
[1740265894076,0.7908,2772.3,2772.0,0.49728065]
[1740265894304,0.056045,2772.2,2772.0,0.49728065]
[1740265894477,0.7908,2772.3,2772.0,0.49728065]
[1740265894679,0.056045,2772.2,2772.0,0.49728065]
[1740265894878,0.7908,2772.3,2772.0,0.49728065]
[1740265895109,0.056045,2772.2,2772.0,0.49728065]
[1740265895310,0.7908,2772.3,2772.0,0.49728065]
[1740265895511,0.056045,2772.2,2772.0,0.49728065]
[1740265895708,0.7908,2772.3,2772.0,0.49728065]
[1740265895870,0.056045,2772.2,2772.0,0.49728065]
[1740265896068,0.7908,2772.3,2772.0,0.49728065]
[1740265896298,0.056045,2772.2,2772.0,0.49728065]
[1740265896500,0.7908,2772.3,2772.0,0.49728065]
[1740265896700,0.056045,2772.2,2772.0,0.49728065]
[1740265896901,0.7908,2772.3,2772.0,0.49728065]
[1740265897117,4.39792,2772.3,2772.0,0.49728065]
[1740265897334,0.056045,2772.2,2771.9,10.09274039]
[1740265897647,4.39792,2772.3,2771.9,9.38530262]
[1740265897799,0.05594208,2772.1,2771.9,9.38530262]
[1740265898001,4.39792,2772.3,2771.9,9.38530262]
[1740265898201,0.7908,2772.3,2771.9,9.38530262]
[1740265898401,0.056045,2772.2,2772.0,0.96552788]
[1740265898931,0.05594208,2772.1,2772.0,0.96552788]
[1740265899132,0.7908,2772.3,2772.0,0.96552788]
[1740265899344,0.056045,2772.2,2772.0,0.96552788]
[1740265899632,4.39797,2772.3,2772.0,0.96552788]
[1740265899828,0.05594208,2772.1,2771.9,5.77777262]
[1740265900133,0.05580384,2772.0,2771.9,5.77777262]
[1740265900317,4.39797,2772.3,2771.9,5.77777262]
[1740265900510,0.05600968,2772.2,2771.9,9.38538262]
[1740265900711,4.39797,2772.3,2771.9,9.38538262]
[1740265900912,0.05600968,2772.2,2771.9,5.77777262]
[1740265901115,4.39797,2772.3,2771.9,5.77777262]
[1740265901327,0.05600968,2772.2,2771.9,5.77777262]
[1740265901498,4.39797,2772.3,2772.0,1.0368291]
[1740265901699,0.05600968,2772.2,2772.0,1.0368291]
[1740265901923,4.39797,2772.3,2772.0,1.0368291]
[1740265902234,0.05600968,2772.2,2772.0,1.0368291]
[1740265902612,4.39797,2772.3,2772.0,1.0368291]
[1740265902813,0.05590676,2772.1,2772.0,1.0368291]
[1740265903013,4.39797,2772.3,2772.0,1.0368291]
[1740265903213,0.05590676,2772.1,2772.0,1.0368291]
[1740265903415,4.39797,2772.3,2772.0,1.0368291]
[1740265903655,0.05590676,2772.1,2772.0,1.0368291]
[1740265903839,4.39797,2772.3,2772.0,1.0368291]
[1740265904002,0.05590676,2772.1,2772.0,1.0368291]
[1740265904204,4.39797,2772.3,2772.0,1.0368291]
[1740265904725,0.05600968,2772.2,2772.0,1.0368291]
[1740265904914,4.39797,2772.3,2772.0,1.0368291]
[1740265905114,0.05561324,2772.2,2772.0,1.0368291]
[1740265905429,4.39797,2772.3,2772.0,1.0368291]
[1740265905636,0.05551032,2772.1,2772.0,1.0368291]
[1740265906113,4.39797,2772.3,2772.0,1.0368291]
[1740265906315,0.05561324,2772.2,2772.0,1.0368291]
[1740265906531,4.39797,2772.3,2772.0,1.0368291]
[1740265906731,0.05561324,2772.2,2772.0,1.8090291]
[1740265906905,3.60717,2772.3,2772.1,0.75868017]
[1740265907105,0.05561324,2772.2,2772.0,1.8090291]
[1740265907305,3.60717,2772.3,2772.0,1.8090291]
[1740265907541,0.05561324,2772.2,2772.0,1.8090291]
[1740265907744,3.60717,2772.3,2772.0,1.8090291]
[1740265907943,0.05561324,2772.2,2772.0,1.8090291]
[1740265908121,3.60717,2772.3,2772.0,1.8090291]
[1740265908444,0.05561324,2772.2,2772.0,1.8090291]
[1740265908661,0.05561324,2772.2,2772.1,1.11944217]
[1740265909107,3.60704,2772.4,2772.1,1.11944217]
[1740265909446,0.05571615,2772.3,2772.0,0.7722]
[1740265910820,0.05571615,2772.3,2772.1,3.60732]
[1740265911141,0.7529,2772.6,2772.2,0.256]
[1740265911338,0.0542163,2772.5,2772.2,0.256]
[1740265913026,3.6611363,2772.5,2772.2,0.256]
[1740265913944,0.0542163,2772.5,2772.2,0.256]
[1740265914151,0.0542163,2772.5,2772.3,1.140636]
[1740265914314,4.36414,2772.9,2772.4,3.60698]
[1740265914515,0.05386039,2772.8,2772.4,3.60698]
[1740265914815,0.05386039,2772.8,2772.3,4.747726]
[1740265915035,3.66032039,2772.8,2772.3,4.747726]
[1740265915235,3.66032039,2772.8,2772.4,1.0393726]
[1740265915757,3.60672,2772.6,2772.4,1.0393726]
[1740265915962,3.60711,2772.3,2772.2,5.39]
[1740265916157,3.66020064,2772.3,2772.2,5.646]
[1740265917372,3.60711,2772.3,2772.2,5.646]
[1740265917737,3.66020064,2772.3,2772.2,5.646]
[1740265918136,3.60711,2772.3,2772.2,5.646]
[1740265918360,3.66020064,2772.3,2772.2,5.646]
[1740265919273,3.66020064,2772.3,2772.2,6.28725]
[1740265919846,0.05309064,2772.3,2772.2,6.28725]
[1740265920169,3.60686,2772.5,2772.2,6.28725]
[1740265920370,0.05240396,2772.4,2772.2,6.28725]
[1740265920848,3.65941396,2772.4,2772.2,6.28725]
[1740265921052,3.65941396,2772.4,2772.3,0.705375]
[1740265921454,0.05240396,2772.4,2772.3,0.705375]
[1740265922781,3.60711,2772.3,2772.2,6.28725]
[1740265922939,3.60711,2772.3,2772.2,5.646]
[1740265923263,3.65939094,2772.3,2772.2,5.646]
[1740265926251,3.65939094,2772.3,2772.2,0.256]
[1740265929405,3.60776,2771.8,2771.7,0.256]
[1740265929620,4.39716,2771.8,2771.7,0.256]
[1740265929910,4.44881923,2771.8,2771.7,0.256]
[1740265931085,0.05165923,2771.8,2771.7,0.256]
[1740265931286,3.60728,2772.2,2771.7,4.65659]
[1740265931481,0.05196799,2772.1,2771.8,0.98909456]
[1740265931681,3.60728,2772.2,2771.8,0.98909456]
[1740265931875,0.7894,2772.3,2771.8,4.59684456]
[1740265931876,0.05196799,2772.1,2771.8,4.59684456]
[1740265932082,0.1,2773.5,2771.8,4.59684456]
[1740265932083,4.39626,2772.5,2772.0,3.6075]
[1740265932388,3.60712,2772.3,2772.0,0.7927]
[1740265932590,3.60712,2772.3,2772.1,0.440031]
[1740265932797,0.05171743,2772.2,2772.1,4.047401]
[1740265933088,3.60685,2772.5,2772.1,5.830031]
[1740265933289,3.60706,2772.4,2772.1,5.830031]
[1740265933491,0.05203265,2772.3,2772.2,0.6622731]
[1740265933982,3.65914265,2772.3,2772.2,0.6622731]
[1740265934481,0.05203265,2772.3,2772.2,0.6622731]
[1740265935700,3.65914265,2772.3,2772.2,0.6622731]
[1740265936097,0.05203265,2772.3,2772.2,0.6622731]
[1740265938924,3.6068,2772.6,2772.2,0.6622731]
[1740265939132,0.05042792,2772.5,2772.3,1.00996641]
[1740265939437,0.05042792,2772.5,2772.3,1.84186641]
[1740265939833,3.60659,2772.7,2772.3,1.84186641]
[1740265939988,0.05045462,2772.4,2772.3,5.44894641]
[1740265940188,3.60646,2772.8,2772.3,5.44894641]
[1740265940388,3.60646,2772.8,2772.4,1.13447751]
[1740265940622,3.60646,2772.8,2772.5,0.256]
[1740265942035,0.05086061,2772.7,2772.5,0.256]
[1740265942436,3.60646,2772.8,2772.5,0.256]
[1740265942967,0.05086061,2772.7,2772.5,0.256]
[1740265943137,4.43084,2772.9,2772.5,1.47894239]
[1740265943336,0.05125871,2772.8,2772.5,1.47894239]
[1740265943869,0.05125871,2772.8,2772.6,3.60671]
[1740265944013,0.05125871,2772.8,2772.7,3.60659]
[1740265944213,3.60624,2773.0,2772.6,0.8319]
[1740265944436,3.60624,2773.0,2772.7,0.77008424]
[1740265944619,0.05048136,2772.9,2772.7,0.77008424]
[1740265945581,0.05037853,2772.8,2772.7,0.77008424]
[1740265945769,3.60612,2773.1,2772.7,0.77008424]
[1740265945968,0.05058419,2773.0,2772.7,0.77008424]
[1740265946167,0.05058419,2773.0,2772.8,0.74664136]
[1740265947282,0.05058419,2773.0,2772.8,4.35300136]
[1740265947478,0.05058419,2773.0,2772.9,0.7926]
[1740265947782,0.05056946,2773.0,2772.9,0.7926]
[1740265947985,3.60611,2773.1,2772.9,0.7926]
[1740265948169,0.05056946,2773.0,2772.9,0.7926]
[1740265948976,0.05053994,2773.0,2772.9,0.7926]
[1740265949186,3.60594,2773.2,2772.9,0.7926]
[1740265949478,0.05064276,2773.1,2772.9,0.7926]
[1740265949870,0.05064276,2773.1,2772.9,1.30952342]
[1740265950066,0.05064276,2773.1,2773.0,0.8227]
[1740265950375,3.60604,2773.2,2772.9,0.51692342]
[1740265950581,3.6062,2773.0,2772.8,0.8227]
[1740265950736,0.05112657,2772.9,2772.8,0.8227]
[1740265955592,3.60617,2773.1,2772.8,0.8227]
[1740265955800,3.60617,2773.1,2772.8,6.2127]
[1740265955801,0.05121463,2773.0,2772.8,6.2127]
[1740265956337,3.65743463,2773.0,2772.8,6.2127]
[1740265956598,3.65743463,2773.0,2772.8,7.53260811]
[1740265957600,0.05121463,2773.0,2772.8,7.53260811]
[1740265958100,0.05121463,2773.0,2772.8,9.15901369]
[1740265958464,3.60596,2773.2,2772.8,9.15901369]
[1740265958950,0.05143841,2773.1,2772.8,9.15901369]
[1740265959147,0.05143841,2773.1,2772.9,1.38034628]
[1740265959586,3.65752841,2773.1,2772.9,1.38034628]
[1740265959883,3.60633,2772.9,2772.8,5.39]
[1740265960101,3.60633,2772.9,2772.8,5.646]
[1740265960250,3.65748283,2772.9,2772.8,5.646]
[1740265960447,3.65748283,2772.9,2772.8,5.39]
[1740265960653,4.44628283,2772.9,2772.8,5.39]
[1740265960853,5.41417167,2772.9,2772.8,5.39]
[1740265961880,3.60672,2772.6,2772.5,0.256]
[1740265962280,3.65756431,2772.6,2772.5,0.256]
[1740265968811,0.05084431,2772.6,2772.5,0.256]
[1740265970905,3.65756431,2772.6,2772.5,0.256]
[1740265971110,0.05084431,2772.6,2772.5,0.256]
[1740265971309,3.60647,2772.8,2772.5,0.8206]
[1740265971549,3.60672,2772.6,2772.5,0.256]
[1740265971750,3.65587272,2772.6,2772.5,0.256]
[1740265972250,0.04915272,2772.6,2772.5,0.256]
[1740265974932,3.60666,2772.7,2772.5,0.256]
[1740265975133,0.04716733,2772.6,2772.5,0.256]